bitfinex/quotes_BTCUSD_20250723
["timestamp","ask_amount","ask_price","bid_price","bid_amount"]
[1753309388618,0.10351563,118500.0,118490.0,1.63431585]
[1753309388833,0.08711563,118500.0,118490.0,1.63962585]
[1753309389486,0.08611563,118500.0,118490.0,1.63962585]
[1753309389702,0.08411563,118500.0,118490.0,1.63962585]
[1753309389952,0.08313563,118500.0,118490.0,1.63962585]
[1753309390170,0.08413563,118500.0,118490.0,1.63962585]
[1753309391730,0.06903563,118500.0,118490.0,1.63962585]
[1753309391973,0.06903563,118500.0,118490.0,1.65582585]
[1753309392203,0.06903563,118500.0,118490.0,1.67102585]
[1753309392631,0.06703563,118500.0,118490.0,1.67102585]
[1753309393318,0.06703563,118500.0,118490.0,1.24363069]
[1753309393513,0.06703563,118500.0,118490.0,1.24463069]
[1753309393941,0.06703563,118500.0,118490.0,1.24563069]
[1753309394165,0.06703563,118500.0,118490.0,1.11611069]
[1753309394382,0.06703563,118500.0,118490.0,1.24559069]
[1753309396767,0.06703563,118500.0,118490.0,1.11611069]
[1753309396982,0.06703563,118500.0,118490.0,1.24559069]
[1753309397927,0.06703563,118500.0,118490.0,1.11611069]
[1753309398144,0.06703563,118500.0,118490.0,1.24559069]
[1753309402150,0.06703563,118500.0,118490.0,1.11611069]
[1753309402327,0.06703563,118500.0,118490.0,1.24555069]
[1753309407337,0.06703563,118500.0,118490.0,1.11611069]
[1753309407558,0.06703563,118500.0,118490.0,1.24555069]
[1753309415328,0.06703563,118500.0,118490.0,1.67297613]
[1753309416672,0.06703563,118500.0,118490.0,1.65777613]
[1753309417083,0.06703563,118500.0,118490.0,1.52833613]
[1753309417299,0.06703563,118500.0,118490.0,1.65773613]
[1753309422081,0.06703563,118500.0,118490.0,1.52833613]
[1753309422294,0.06703563,118500.0,118490.0,1.65769613]
[1753309426751,0.06703563,118500.0,118490.0,1.67359613]
[1753309427256,0.06703563,118500.0,118490.0,1.69104515]
[1753309427488,0.06703563,118500.0,118490.0,2.07572634]
[1753309427704,0.06703563,118500.0,118490.0,1.69104515]
[1753309429506,0.06703563,118500.0,118490.0,1.56168515]
[1753309429743,0.06703563,118500.0,118490.0,1.69104515]
[1753309432946,0.06703563,118500.0,118490.0,1.98964515]
[1753309435508,0.05429195,118500.0,118490.0,2.37432634]
[1753309435922,0.05348245,118510.0,118500.0,0.24244098]
[1753309436130,0.01604908,118520.0,118510.0,0.53407557]
[1753309436330,0.01604908,118520.0,118510.0,1.57243525]
[1753309436563,0.05373153,118520.0,118510.0,1.57243525]
[1753309436770,0.03642584,118520.0,118510.0,1.57243525]
[1753309437662,0.03642584,118520.0,118510.0,1.62243524]
[1753309437878,0.03742584,118520.0,118510.0,1.63793524]
[1753309438322,0.03842584,118520.0,118510.0,1.63793524]
[1753309438549,0.03742584,118520.0,118510.0,1.65453524]
[1753309438762,6e-05,118530.0,118520.0,0.63405919]
[1753309438974,0.0353235,118530.0,118520.0,1.63503887]
[1753309439190,0.0353235,118530.0,118520.0,1.63821887]
[1753309439840,0.0353235,118530.0,118520.0,1.62241887]
[1753309440875,0.02453979,118530.0,118520.0,1.62241887]
[1753309441309,0.02453979,118530.0,118520.0,1.53665965]
[1753309441733,0.02453979,118530.0,118520.0,1.55175965]
[1753309442625,0.02453979,118530.0,118520.0,0.86815649]
[1753309442836,0.02453979,118530.0,118520.0,1.55175965]
[1753309443869,0.02453979,118530.0,118520.0,1.56009782]
[1753309447931,0.04023979,118530.0,118520.0,1.54499782]
[1753309448211,0.02453979,118530.0,118520.0,1.56159782]
[1753309452230,0.02453979,118530.0,118520.0,1.54499782]
[1753309453330,0.02453979,118530.0,118520.0,1.56009782]
[1753309455112,0.02453979,118530.0,118520.0,1.57659782]
[1753309455580,0.02453979,118530.0,118520.0,1.56009782]
[1753309456289,0.02453979,118530.0,118520.0,1.56209782]
[1753309456542,0.02453979,118530.0,118520.0,1.57431537]
[1753309456787,0.02453979,118530.0,118520.0,1.56209782]
[1753309457029,0.02453979,118530.0,118520.0,1.56303705]
[1753309457845,0.02453979,118530.0,118520.0,1.43371705]
[1753309458089,0.02453979,118530.0,118520.0,1.56295705]
[1753309460482,0.02453979,118530.0,118520.0,1.57865705]
[1753309461232,0.02453979,118530.0,118520.0,1.66399779]
[1753309463195,0.02453979,118530.0,118520.0,1.64829779]
[1753309464349,0.02453979,118530.0,118520.0,1.66399779]
[1753309467276,0.02453979,118530.0,118520.0,2.04846974]
[1753309467460,0.02453979,118530.0,118520.0,1.66399779]
[1753309470420,0.02453979,118530.0,118520.0,1.64829779]
[1753309472372,0.02453979,118530.0,118520.0,1.63995962]
[1753309474377,0.02453979,118530.0,118520.0,1.93855962]
[1753309475849,0.02453979,118530.0,118520.0,1.96348912]
[1753309476165,0.02453979,118530.0,118520.0,1.96340912]
[1753309476385,0.02453979,118530.0,118520.0,1.83424912]
[1753309476604,0.02453979,118530.0,118520.0,1.94830912]
[1753309476949,0.02453979,118530.0,118520.0,1.95673538]
[1753309481422,0.01705979,118530.0,118520.0,1.95673538]
[1753309485982,0.0002,118540.0,118530.0,1.01298672]
[1753309486189,0.00024907,118540.0,118530.0,1.23181402]
[1753309486398,0.02239159,118540.0,118530.0,1.66628597]
[1753309486602,0.02214252,118540.0,118530.0,2.35373499]
[1753309487665,0.1166,118550.0,118540.0,0.19402645]
[1753309487875,0.1166,118550.0,118540.0,1.22866765]
[1753309488136,0.1166,118550.0,118540.0,1.23179765]
[1753309489484,0.1176,118550.0,118540.0,1.23179765]
[1753309489693,0.101,118550.0,118540.0,1.23179765]
[1753309490956,0.101,118550.0,118540.0,1.28179764]
[1753309495284,0.101,118550.0,118540.0,1.28279764]
[1753309498175,0.1,118550.0,118540.0,1.28279764]
[1753309499289,0.1,118550.0,118540.0,1.29779764]
[1753309499699,0.1,118550.0,118540.0,1.20202666]
[1753309499887,0.1,118550.0,118540.0,1.33110666]
[1753309501264,0.1,118550.0,118540.0,1.67110666]
[1753309501711,1e-08,118550.0,118540.0,1.67110666]
[1753309503706,1e-08,118550.0,118540.0,1.96970666]
[1753309504079,1e-08,118550.0,118540.0,1.84062666]
[1753309504442,1e-08,118550.0,118540.0,1.96966666]
[1753309505647,1e-08,118550.0,118540.0,1.84062666]
[1753309505838,1e-08,118550.0,118540.0,1.96966666]
[1753309509781,1e-08,118550.0,118540.0,1.82472666]
[1753309510008,0.01510001,118550.0,118540.0,1.93876666]
[1753309511073,0.01510001,118550.0,118540.0,1.80972666]
[1753309511309,0.01510001,118550.0,118540.0,1.93876666]
[1753309512784,1e-08,118550.0,118540.0,1.93876666]
[1753309515153,0.01640001,118550.0,118540.0,1.93876666]
[1753309515477,1e-08,118550.0,118540.0,1.93876666]
[1753309515683,0.0105,118560.0,118550.0,0.68258288]
[1753309515899,0.0202,118580.0,118570.0,0.58397737]
[1753309516104,0.02032424,118580.0,118570.0,1.53395126]
[1753309516469,0.02032424,118580.0,118570.0,1.15269931]
[1753309517090,0.02032424,118580.0,118570.0,1.53717126]
[1753309517383,0.02032424,118580.0,118570.0,1.10975993]
[1753309517633,0.02432424,118580.0,118570.0,1.10975993]
[1753309518656,0.02232424,118580.0,118570.0,1.10975993]
[1753309519075,0.02332424,118580.0,118570.0,1.10975993]
[1753309519624,0.02332424,118580.0,118570.0,1.20645478]
[1753309519625,0.02132424,118580.0,118570.0,1.20645478]
[1753309519826,0.02132424,118580.0,118570.0,1.19423723]
[1753309520032,0.02232424,118580.0,118570.0,1.19423723]
[1753309523815,0.02232424,118580.0,118570.0,0.85270466]
[1753309524163,0.02232424,118580.0,118570.0,1.19423723]
[1753309526447,0.02232424,118580.0,118570.0,1.2028682]
[1753309527458,0.02232424,118580.0,118570.0,1.06523723]
[1753309527679,0.05560424,118580.0,118570.0,1.18898723]
[1753309531070,0.04000424,118580.0,118570.0,1.19423723]
[1753309532247,0.03802424,118580.0,118570.0,1.19423723]
[1753309532453,0.03802424,118580.0,118570.0,1.20645478]
[1753309532663,0.03802424,118580.0,118570.0,1.19423723]
[1753309538676,0.02232424,118580.0,118570.0,1.19423723]
[1753309539212,0.02232424,118580.0,118570.0,1.6361106]
[1753309540087,0.02232424,118580.0,118570.0,1.6211106]
[1753309542064,0.02232424,118580.0,118570.0,1.4921106]
[1753309542261,0.02232424,118580.0,118570.0,1.6210706]
[1753309542673,0.02232424,118580.0,118570.0,1.64683805]
[1753309545187,0.02232424,118580.0,118570.0,0.87843211]
[1753309545389,0.02232424,118580.0,118570.0,1.64683805]
[1753309547160,0.03782424,118580.0,118570.0,1.64683805]
[1753309547404,0.03782424,118580.0,118570.0,1.51787805]
[1753309547630,0.03782424,118580.0,118570.0,1.26263508]
[1753309548269,0.03782424,118580.0,118570.0,1.13367508]
[1753309548500,0.03782424,118580.0,118570.0,1.26263508]
[1753309548690,0.03782424,118580.0,118570.0,1.13367508]
[1753309548952,0.03980424,118580.0,118570.0,1.12842508]
[1753309549167,0.05600424,118580.0,118570.0,1.25738508]
[1753309549798,0.05600424,118580.0,118570.0,1.26050508]
[1753309550017,0.03980424,118580.0,118570.0,1.26050508]
[1753309550249,0.03980424,118580.0,118570.0,1.26249508]
[1753309550468,0.03980424,118580.0,118570.0,1.26253508]
[1753309556222,0.03782424,118580.0,118570.0,1.26253508]
[1753309559659,0.03782424,118580.0,118570.0,0.87833211]
[1753309559903,0.03782424,118580.0,118570.0,1.26253508]
[1753309568386,0.02232424,118580.0,118570.0,1.26253508]
[1753309578697,0.02232424,118580.0,118570.0,0.87833211]
[1753309578897,0.02232424,118580.0,118570.0,1.26253508]
[1753309579282,0.02232424,118580.0,118570.0,1.27893508]
[1753309582319,0.02232424,118580.0,118570.0,1.27893508]
[1753309584073,0.02232424,118580.0,118570.0,1.66313805]
[1753309584280,0.0002,118590.0,118580.0,0.293961]
[1753309584455,0.0002,118590.0,118580.0,1.63342424]
[1753309584655,0.0002,118590.0,118580.0,1.63661424]
[1753309585682,0.0022,118590.0,118580.0,1.63661424]
[1753309585911,0.0022,118590.0,118580.0,1.50765424]
[1753309586435,0.0032,118590.0,118580.0,1.63661424]
[1753309588065,0.0032,118590.0,118580.0,0.7392483]
[1753309588214,0.0032,118590.0,118580.0,1.62111424]
[1753309600541,0.0198,118590.0,118580.0,1.62111424]
[1753309607211,0.0032,118590.0,118580.0,1.62111424]
[1753309609842,0.0032,118590.0,118580.0,1.63651424]
[1753309611998,0.0032,118590.0,118580.0,0.8681083]
[1753309612201,0.0032,118590.0,118580.0,1.50755424]
[1753309612403,0.0032,118590.0,118580.0,1.63647424]
[1753309612943,0.0032,118590.0,118580.0,0.8680683]
[1753309613155,0.0032,118590.0,118580.0,1.63647424]
[1753309613348,0.0032,118590.0,118580.0,1.50755424]
[1753309613554,0.0032,118590.0,118580.0,1.63647424]
[1753309615384,0.0032,118590.0,118580.0,1.62107424]
[1753309615824,0.0032,118590.0,118580.0,1.49215424]
[1753309616036,0.0032,118590.0,118580.0,1.62107424]
[1753309617453,0.0188,118590.0,118580.0,1.62107424]
[1753309617675,0.0188,118590.0,118580.0,1.49215424]
[1753309617890,0.0188,118590.0,118580.0,1.62107424]
[1753309622008,0.0032,118590.0,118580.0,1.62107424]
[1753309640288,0.0032,118590.0,118580.0,1.63737424]
[1753309646656,0.0032,118590.0,118580.0,1.62107424]
[1753309647456,0.0032,118590.0,118580.0,1.49215424]
[1753309647659,0.0032,118590.0,118580.0,1.62103424]
[1753309648539,0.0032,118590.0,118580.0,1.49215424]
[1753309648751,0.0032,118590.0,118580.0,1.62103424]
[1753309655292,0.03792,118590.0,118580.0,1.23148127]
[1753309655521,0.03792,118590.0,118580.0,1.10264127]
[1753309655735,0.03792,118590.0,118580.0,1.23148127]
[1753309656030,0.05478375,118590.0,118580.0,1.23148127]
[1753309656484,0.05478368,118590.0,118580.0,1.10264127]
[1753309656684,0.05478368,118590.0,118580.0,1.23148127]
[1753309656913,0.22343196,118590.0,118580.0,0.99286546]
[1753309657129,0.08008013,118590.0,118580.0,1.01816382]
[1753309657349,0.08008077,118590.0,118580.0,1.0097312]
[1753309657571,0.23186516,118590.0,118580.0,1.13857128]
[1753309657804,0.23186516,118590.0,118580.0,1.14700397]
[1753309658023,0.05478447,118590.0,118580.0,1.15543659]
[1753309658237,0.06321681,118590.0,118580.0,1.15543659]
[1753309658909,0.05478418,118590.0,118580.0,1.15543659]
[1753309659137,0.06321645,118590.0,118580.0,1.15543659]
[1753309660156,0.06321645,118590.0,118580.0,1.02659659]
[1753309660404,0.24029707,118590.0,118580.0,0.66973128]
[1753309660653,0.24162707,118590.0,118580.0,0.66973128]
[1753309660864,0.24162707,118590.0,118580.0,0.67816404]
[1753309661613,0.24162707,118590.0,118580.0,0.62816405]
[1753309661883,0.21633062,118590.0,118580.0,0.2186625]
[1753309662110,0.20789828,118590.0,118580.0,0.43420297]
[1753309662345,0.20789828,118590.0,118580.0,0.60286547]
[1753309662606,0.35789828,118590.0,118580.0,0.43420297]
[1753309662805,0.21732839,118580.0,118570.0,1.13102654]
[1753309663097,0.22910144,118580.0,118570.0,1.01061994]
[1753309663346,0.23753456,118580.0,118570.0,1.01061994]
[1753309663794,0.23753456,118580.0,118570.0,0.96061995]
[1753309664024,0.03514,118580.0,118570.0,0.67061979]
[1753309664290,0.03514,118580.0,118570.0,0.72061979]
[1753309664998,0.03614,118580.0,118570.0,0.72061979]
[1753309665213,0.03481,118580.0,118570.0,0.72061979]
[1753309667341,0.03481,118580.0,118570.0,0.69504742]
[1753309667986,0.03481,118580.0,118570.0,0.82388742]
[1753309669267,0.03481,118580.0,118570.0,0.77388742]
[1753309669469,0.03481,118580.0,118570.0,0.82388742]
[1753309669684,0.01831,118580.0,118570.0,0.82694742]
[1753309669906,0.01831,118580.0,118570.0,0.82905742]
[1753309671654,0.03491,118580.0,118570.0,0.82905742]
[1753309672287,0.03491,118580.0,118570.0,0.82694742]
[1753309678377,0.03491,118580.0,118570.0,0.44274445]
[1753309678573,0.03491,118580.0,118570.0,0.82694742]
[1753309681521,0.03491,118580.0,118570.0,0.44274445]
[1753309681704,0.03491,118580.0,118570.0,0.82694742]
[1753309688561,0.01831,118580.0,118570.0,0.82900742]
[1753309689609,0.01831,118580.0,118570.0,0.70016742]
[1753309689828,0.03441,118580.0,118570.0,0.70016742]
[1753309690249,0.16321,118580.0,118570.0,0.64504742]
[1753309690469,0.0567,118570.0,118560.0,0.17711277]
[1753309690676,0.06714354,118570.0,118560.0,0.57818433]
[1753309690891,0.05870992,118570.0,118560.0,0.57818433]
[1753309691099,0.24425396,118570.0,118560.0,0.97082134]
[1753309691345,0.2442546,118570.0,118560.0,0.9623873]
[1753309691538,0.2442546,118570.0,118560.0,1.0123873]
[1753309692004,0.2452546,118570.0,118560.0,0.62818433]
[1753309692212,0.2452546,118570.0,118560.0,1.0123873]
[1753309692427,0.23682127,118570.0,118560.0,1.00395318]
[1753309692646,0.23682127,118570.0,118560.0,0.95395318]
[1753309692895,0.23682127,118570.0,118560.0,1.01238737]
[1753309693398,0.23682127,118570.0,118560.0,0.96238737]
[1753309693602,0.24248799,118570.0,118560.0,0.56975021]
[1753309693801,0.24248799,118570.0,118560.0,0.6281844]
[1753309694022,0.22838787,118570.0,118560.0,0.61975021]
[1753309694234,0.22838787,118570.0,118560.0,0.56975028]
[1753309694448,0.23704788,118570.0,118560.0,0.61975028]
[1753309694664,0.23704788,118570.0,118560.0,0.6281844]
[1753309695429,0.23704731,118570.0,118560.0,0.63661858]
[1753309695629,0.23704731,118570.0,118560.0,1.02082155]
[1753309696573,0.23704731,118570.0,118560.0,1.02387155]
[1753309697755,0.23704731,118570.0,118560.0,1.01543751]
[1753309697957,0.24548114,118570.0,118560.0,1.03230582]
[1753309698468,0.23704731,118570.0,118560.0,1.03230582]
[1753309698672,0.23704731,118570.0,118560.0,1.03230539]
[1753309699123,0.23704731,118570.0,118560.0,1.02387135]
[1753309699352,0.24548114,118570.0,118560.0,1.02387135]
[1753309699572,0.23614781,118570.0,118560.0,0.99856899]
[1753309699751,0.22771426,118570.0,118560.0,1.01543779]
[1753309699982,0.22771426,118570.0,118560.0,0.23554752]
[1753309699983,0.21928057,118570.0,118560.0,0.23554752]
[1753309700183,0.21084674,118570.0,118560.0,0.95395346]
[1753309700423,0.29532404,118570.0,118560.0,0.38420297]
[1753309700636,0.29532404,118570.0,118560.0,0.39263751]
[1753309701047,0.29532404,118570.0,118560.0,0.9539659]
[1753309701474,0.29532404,118570.0,118560.0,0.9624003]
[1753309701679,0.21084674,118570.0,118560.0,0.9624003]
[1753309701863,0.21084674,118570.0,118560.0,0.57819733]
[1753309702092,0.21084674,118570.0,118560.0,0.58968166]
[1753309702314,0.21084674,118570.0,118560.0,0.56437846]
[1753309702537,0.21084674,118570.0,118560.0,0.38420297]
[1753309702762,0.21084674,118570.0,118560.0,0.56132846]
[1753309703220,0.21084674,118570.0,118560.0,0.56976293]
[1753309703441,0.21084674,118570.0,118560.0,0.56132846]
[1753309703866,0.29532404,118570.0,118560.0,0.39263751]
[1753309704072,0.29532404,118570.0,118560.0,0.38420297]
[1753309705733,0.21084674,118570.0,118560.0,0.38420297]
[1753309706116,0.18555975,118560.0,118550.0,0.45145119]
[1753309706320,0.0168688,118560.0,118550.0,0.83771416]
[1753309706560,0.01686859,118560.0,118550.0,0.83771416]
[1753309707039,4.904e-05,118580.0,118570.0,0.32567736]
[1753309707274,4.904e-05,118580.0,118570.0,0.54097466]
[1753309707478,4.904e-05,118580.0,118570.0,1.3124306]
[1753309708684,0.0002,118590.0,118580.0,0.663961]
[1753309708905,0.0002,118590.0,118580.0,2.03491721]
[1753309709120,0.0002,118590.0,118580.0,1.65071424]
[1753309709421,0.0002,118590.0,118580.0,1.56520134]
[1753309709613,0.0002,118590.0,118580.0,1.22375482]
[1753309710684,0.0002,118590.0,118580.0,0.8833083]
[1753309710900,0.0002,118590.0,118580.0,1.22475482]
[1753309711517,0.0002,118590.0,118580.0,0.8833083]
[1753309711806,0.0002,118590.0,118580.0,1.22475482]
[1753309712121,0.0002,118590.0,118580.0,1.23339099]
[1753309712356,0.0002,118590.0,118580.0,1.22475482]
[1753309712568,0.0002,118590.0,118580.0,0.8833083]
[1753309712781,0.0002,118590.0,118580.0,1.22475482]
[1753309714014,0.0002,118590.0,118580.0,1.09599482]
[1753309714250,0.0002,118590.0,118580.0,1.06599482]
[1753309714695,0.12916,118590.0,118580.0,1.06599482]
[1753309717542,0.12916,118590.0,118580.0,0.980207]
[1753309718621,0.12916,118590.0,118580.0,1.00550551]
[1753309721135,0.12916,118590.0,118580.0,1.02210551]
[1753309726394,0.12916,118590.0,118580.0,1.00550551]
[1753309727101,0.13811184,118590.0,118580.0,1.00550551]
[1753309727336,0.12968,118590.0,118580.0,1.00550551]
[1753309727772,0.12968,118590.0,118580.0,0.95550551]
[1753309727972,0.13811184,118590.0,118580.0,1.00550551]
[1753309728183,0.12968,118590.0,118580.0,1.00550551]
[1753309728400,0.15497616,118590.0,118580.0,0.87102821]
[1753309728678,0.18855594,118590.0,118580.0,0.86896821]
[1753309728906,0.16462382,118590.0,118580.0,0.52896821]
[1753309729123,0.18148821,118590.0,118580.0,0.53740119]
[1753309729330,0.21913635,118590.0,118580.0,0.58740119]
[1753309729629,0.18148828,118590.0,118580.0,0.53740119]
[1753309729837,0.18148828,118590.0,118580.0,0.58740119]
[1753309730042,0.18148828,118590.0,118580.0,0.53740119]
[1753309730264,0.18148828,118590.0,118580.0,0.58740119]
[1753309730887,0.35856897,118590.0,118580.0,0.58740119]
[1753309731618,0.35856897,118590.0,118580.0,0.58943119]
[1753309731955,0.18148828,118590.0,118580.0,0.58943119]
[1753309732162,0.17305594,118590.0,118580.0,0.58943119]
[1753309732466,0.0002,118590.0,118580.0,1.51545501]
[1753309732779,0.0002,118590.0,118580.0,1.17400849]
[1753309738693,0.0002,118590.0,118580.0,1.19988577]
[1753309740693,0.0002,118590.0,118580.0,1.07048577]
[1753309740919,0.0002,118590.0,118580.0,1.19972577]
[1753309742127,0.51812883,118650.0,118580.0,1.19972577]
[1753309742128,0.028,118680.0,118670.0,0.04999999]
[1753309742343,0.028,118680.0,118670.0,0.97873694]
[1753309742567,0.04534226,118680.0,118670.0,0.64050056]
[1753309742810,0.03047129,118680.0,118670.0,0.63526042]
[1753309743035,0.02849129,118680.0,118670.0,0.64050042]
[1753309743252,0.03049129,118680.0,118670.0,0.64050042]
[1753309743466,0.0473424,118680.0,118670.0,0.64050042]
[1753309743681,0.03891674,118680.0,118670.0,0.64050042]
[1753309743923,0.19375379,118680.0,118670.0,0.62364775]
[1753309744122,0.19573428,118680.0,118670.0,0.63207419]
[1753309744326,0.06617428,118680.0,118670.0,0.62115523]
[1753309744547,0.17888254,118680.0,118670.0,0.6380079]
[1753309744764,0.17884254,118680.0,118670.0,0.6380079]
[1753309744992,0.17686219,118680.0,118670.0,0.6628298]
[1753309745238,0.18528778,118680.0,118670.0,0.6628298]
[1753309745468,0.01105159,118700.0,118680.0,0.22549758]
[1753309745695,0.0128,118710.0,118700.0,0.68042141]
[1753309745916,0.008,118720.0,118710.0,0.64685607]
[1753309746144,0.008,118720.0,118710.0,1.33511911]
[1753309746145,0.00814731,118720.0,118710.0,1.33511911]
[1753309746360,0.00814731,118720.0,118710.0,1.35256813]
[1753309746616,0.00814731,118720.0,118710.0,1.49734813]
[1753309746833,0.12768,118740.0,118730.0,0.63266996]
[1753309747050,0.00459889,118750.0,118740.0,0.19369965]
[1753309747051,0.0130193,118750.0,118740.0,0.19369965]
[1753309747272,0.00459889,118750.0,118740.0,0.25499852]
[1753309747490,0.02341978,118750.0,118740.0,0.22436439]
[1753309747694,0.15301978,118750.0,118740.0,0.2159427]
[1753309747922,0.16144047,118750.0,118740.0,0.22436446]
[1753309748128,0.1589604,118750.0,118740.0,0.23278615]
[1753309748336,0.16738116,118750.0,118740.0,0.22436446]
[1753309748547,0.16738116,118750.0,118740.0,0.22436439]
[1753309748755,0.32738223,118750.0,118740.0,0.2159427]
[1753309748962,0.32738223,118750.0,118740.0,0.22436446]
[1753309749195,0.33576328,118750.0,118740.0,0.22436446]
[1753309749394,0.33576328,118750.0,118740.0,0.2159427]
[1753309749603,0.0084214,118740.0,118730.0,0.27437921]
[1753309749813,0.20410119,118740.0,118730.0,0.27437921]
[1753309750025,0.03566574,118740.0,118730.0,0.24122336]
[1753309750260,0.03566574,118740.0,118730.0,0.29446336]
[1753309750495,0.3336614,118740.0,118730.0,0.31329923]
[1753309750721,0.30839699,118740.0,118720.0,0.28281672]
[1753309750924,0.17687146,118730.0,118720.0,0.23281736]
[1753309751140,0.00842204,118730.0,118720.0,0.24966314]
[1753309751364,0.0188433,118740.0,118730.0,0.19371618]
[1753309751625,0.33566169,118740.0,118730.0,0.19371632]
[1753309751844,0.14834301,118740.0,118730.0,0.20213843]
[1753309752069,0.01040119,118740.0,118730.0,0.26343794]
[1753309752276,0.19563495,118750.0,118740.0,0.18527853]
[1753309752496,0.20439376,118750.0,118740.0,0.18527853]
[1753309752714,0.34397626,118750.0,118740.0,0.1937]
[1753309752938,0.16713416,118750.0,118740.0,0.20749133]
[1753309753181,0.17555507,118750.0,118740.0,0.21591259]
[1753309753402,0.18199655,118750.0,118740.0,0.21591259]
[1753309753624,0.33357615,118750.0,118740.0,0.19907]
[1753309753850,0.33357615,118750.0,118740.0,0.18222699]
[1753309754065,0.32713524,118750.0,118740.0,0.00537]
[1753309754286,0.33013524,118750.0,118740.0,0.00537]
[1753309754966,0.20212126,118740.0,118730.0,0.64468444]
[1753309755186,0.18527846,118740.0,118730.0,0.64681444]
[1753309755615,0.18527846,118740.0,118730.0,0.30562632]
[1753309756042,0.17685692,118740.0,118730.0,0.0787545]
[1753309756261,0.17883692,118740.0,118730.0,0.1287545]
[1753309756475,0.17883692,118740.0,118730.0,0.1233845]
[1753309756979,0.17883692,118740.0,118730.0,0.02587703]
[1753309757413,0.17687174,118730.0,118720.0,0.27763357]
[1753309757634,0.30627174,118730.0,118720.0,0.28818682]
[1753309758063,0.30627174,118730.0,118720.0,0.05287747]
[1753309758310,0.30627174,118730.0,118720.0,0.27976418]
[1753309758513,0.30627174,118730.0,118720.0,0.61253005]
[1753309759194,0.30627174,118730.0,118720.0,0.62095308]
[1753309759607,0.30627174,118730.0,118720.0,0.62937604]
[1753309760569,0.30627174,118730.0,118720.0,0.62095308]
[1753309760683,0.30627174,118730.0,118720.0,0.27028466]
[1753309760896,0.29995942,118730.0,118720.0,0.04750747]
[1753309761114,0.29995942,118730.0,118720.0,0.27652411]
[1753309761339,0.29784942,118730.0,118720.0,0.27652411]
[1753309761566,0.1853096,118720.0,118710.0,0.04750747]
[1753309761824,0.17690161,118710.0,118700.0,0.22742405]
[1753309762053,0.18743528,118710.0,118700.0,0.27742405]
[1753309762265,0.31468528,118710.0,118700.0,0.28797857]
[1753309762492,0.31468528,118710.0,118700.0,0.05263747]
[1753309762705,0.31468528,118710.0,118700.0,0.05587747]
[1753309762706,0.30626161,118710.0,118700.0,0.05587747]
[1753309763362,0.30626161,118710.0,118700.0,0.22436946]
[1753309763581,0.30626161,118710.0,118700.0,0.2912185]
[1753309763779,0.30626161,118710.0,118700.0,0.05687747]
[1753309764000,0.30626161,118710.0,118700.0,0.28379391]
[1753309764445,0.30626161,118710.0,118700.0,0.28479391]
[1753309764885,0.30626161,118710.0,118700.0,0.28479405]
[1753309765103,0.30626161,118710.0,118700.0,0.2932185]
[1753309765539,0.30626161,118710.0,118700.0,0.28479405]
[1753309765740,0.30626161,118710.0,118700.0,0.23479405]
[1753309766167,0.30626161,118710.0,118700.0,0.29321857]
[1753309766374,0.30626161,118710.0,118700.0,0.24321857]
[1753309766603,0.30626161,118710.0,118700.0,0.29321857]
[1753309766836,0.2978378,118710.0,118700.0,0.10787747]
[1753309767082,0.2978378,118710.0,118700.0,0.05787747]
[1753309767293,0.2978378,118710.0,118700.0,0.10787747]
[1753309767501,0.2978378,118710.0,118700.0,0.05787747]
[1753309767723,0.2999478,118710.0,118700.0,0.005]
[1753309768034,0.2999478,118710.0,118700.0,0.055]
[1753309768227,0.2999478,118710.0,118700.0,0.005]
[1753309768743,0.2999478,118710.0,118700.0,0.055]
[1753309769389,0.2999478,118710.0,118700.0,0.39592723]
[1753309769605,0.2999478,118710.0,118700.0,0.32818559]
[1753309769821,0.2999478,118710.0,118700.0,0.37818559]
[1753309772391,0.2999478,118710.0,118700.0,0.32818559]
[1753309772552,0.2999478,118710.0,118700.0,0.37818559]
[1753309773022,0.1705878,118710.0,118700.0,0.54667758]
[1753309773195,0.2997078,118710.0,118700.0,0.54667758]
[1753309773453,0.2997078,118710.0,118700.0,0.55510217]
[1753309773679,0.2997078,118710.0,118700.0,0.50510217]
[1753309773888,0.2997078,118710.0,118700.0,0.55510217]
[1753309774308,0.00211,118710.0,118700.0,0.56857662]
[1753309774523,0.18694942,118730.0,118710.0,0.18532507]
[1753309774734,0.18829601,118730.0,118720.0,0.53669979]
[1753309774940,0.14062225,118730.0,118720.0,0.59564022]
[1753309775154,0.31749399,118730.0,118720.0,0.59564022]
[1753309775367,0.15746661,118730.0,118720.0,0.6040629]
[1753309775567,0.01142183,118730.0,118720.0,0.94499013]
[1753309775768,0.1322,118730.0,118720.0,0.6694629]
[1753309776178,0.15946633,118730.0,118720.0,0.63721698]
[1753309776389,0.33633822,118730.0,118720.0,0.63721698]
[1753309776599,0.33633822,118730.0,118720.0,0.29628989]
[1753309776740,0.33633822,118730.0,118720.0,0.64563987]
[1753309776952,0.33733822,118730.0,118720.0,0.64563987]
[1753309777147,0.16046633,118730.0,118720.0,0.63749786]
[1753309777371,0.1436219,118730.0,118720.0,0.64592054]
[1753309777542,0.1436219,118730.0,118720.0,0.66132054]
[1753309777745,0.1352,118730.0,118720.0,0.66132054]
[1753309777965,0.006,118730.0,118720.0,0.80712054]
[1753309779201,0.004,118730.0,118720.0,0.80712054]
[1753309779451,0.003,118730.0,118720.0,0.80712054]
[1753309779679,0.005,118730.0,118720.0,0.80712054]
[1753309780368,0.005,118730.0,118720.0,0.80720054]
[1753309781620,0.005,118730.0,118720.0,0.82464956]
[1753309781856,0.005,118730.0,118720.0,0.69536956]
[1753309782137,0.005,118730.0,118720.0,0.82460956]
[1753309783737,0.005,118730.0,118720.0,0.69536956]
[1753309783954,0.005,118730.0,118720.0,0.80712054]
[1753309784379,0.005,118730.0,118720.0,0.67792054]
[1753309784621,0.005,118730.0,118720.0,0.80712054]
[1753309784823,0.005,118730.0,118720.0,0.47433532]
[1753309785051,0.005,118730.0,118720.0,0.80712054]
[1753309785463,0.005,118730.0,118720.0,0.67792054]
[1753309785914,0.005,118730.0,118720.0,0.80712054]
[1753309786164,0.005,118730.0,118720.0,0.34513532]
[1753309786391,0.00211889,118750.0,118740.0,0.29035614]
[1753309786591,0.14874,118760.0,118750.0,0.19368334]
[1753309786792,0.14874,118760.0,118750.0,0.67747505]
[1753309787020,0.14888709,118760.0,118750.0,0.66002603]
[1753309787233,0.01964709,118760.0,118750.0,0.67747505]
[1753309787437,0.15044709,118760.0,118750.0,0.67747505]
[1753309787853,0.02064709,118760.0,118750.0,0.67747505]
[1753309788051,0.15148709,118760.0,118750.0,0.24624081]
[1753309788293,0.02064709,118760.0,118750.0,0.57902603]
[1753309788503,0.02064709,118760.0,118750.0,0.64462603]
[1753309788714,0.02064709,118760.0,118750.0,0.65962603]
[1753309789229,0.15172709,118760.0,118750.0,0.65962603]
[1753309789434,0.15172709,118760.0,118750.0,0.32684081]